[Event "*** SCC Grand Prix: Titled Tuesday Blitz"]
[Site "Chess.com"]
[Date "2020.10.06"]
[Round "5"]
[White "Fins0905"]
[Black "kot60"]
[Result "1-0"]
[WhiteElo "2637"]
[BlackElo "2433"]
[TimeControl "180+1"]
[EndTime "10:56:28 PDT"]
[Termination "Fins0905 won on time"]

1. e4 {[%clk 0:03:00.9]} 1... e5 {[%clk 0:02:59.5]} 2. Nf3 {[%clk 0:02:57.7]}
2... Nc6 {[%clk 0:02:59.3]} 3. Bb5 {[%clk 0:02:56.5]} 3... a6 {[%clk 0:02:59.8]}
4. Bxc6 {[%clk 0:02:53.8]} 4... dxc6 {[%clk 0:02:59.8]} 5. O-O {[%clk 0:02:54]}
5... f6 {[%clk 0:03:00.3]} 6. d4 {[%clk 0:02:53.5]} 6... exd4 {[%clk 0:03:01.2]}
7. Nxd4 {[%clk 0:02:54]} 7... Bd6 {[%clk 0:03:00.6]} 8. Be3 {[%clk 0:02:41]}
8... Qe7 {[%clk 0:03:00]} 9. Nd2 {[%clk 0:02:35.3]} 9... Bd7 {[%clk 0:02:53.4]}
10. Nc4 {[%clk 0:02:13.9]} 10... Qxe4 {[%clk 0:02:48.4]} 11. Bh6 {[%clk
0:01:17.5]} 11... Qg6 {[%clk 0:02:41.5]} 12. Nxd6+ {[%clk 0:01:17.2]} 12... cxd6
{[%clk 0:02:40.4]} 13. Bf4 {[%clk 0:01:17.6]} 13... d5 {[%clk 0:01:38.4]} 14.
Re1+ {[%clk 0:01:11]} 14... Kf7 {[%clk 0:01:38.1]} 15. Qd2 {[%clk 0:01:08.1]}
15... c5 {[%clk 0:01:23.6]} 16. Ne6 {[%clk 0:00:38.3]} 16... Bxe6 {[%clk
0:01:17.1]} 17. Rxe6 {[%clk 0:00:37.9]} 17... Qf5 {[%clk 0:00:28.6]} 18. Rae1
{[%clk 0:00:20]} 18... g5 {[%clk 0:00:21]} 19. Bd6 {[%clk 0:00:15.5]} 19... Rc8
{[%clk 0:00:16.1]} 20. h3 {[%clk 0:00:13.9]} 20... h5 {[%clk 0:00:14.6]} 21. Qa5
{[%clk 0:00:10.8]} 21... Rc6 {[%clk 0:00:04.8]} 22. Qd8 {[%clk 0:00:09.7]} 1-0

[Event "*** SCC Grand Prix: Titled Tuesday Blitz"]
[Site "Chess.com"]
[Date "2020.10.06"]
[Round "5"]
[White "GregShahade"]
[Black "Anton_Demchenko"]
[Result "1-0"]
[WhiteElo "2660"]
[BlackElo "2818"]
[TimeControl "180+1"]
[EndTime "10:56:29 PDT"]
[Termination "GregShahade won on time"]

1. e4 {[%clk 0:03:00.9]} 1... c6 {[%clk 0:02:57.4]} 2. Nc3 {[%clk 0:02:59.1]}
2... d5 {[%clk 0:02:56.9]} 3. Nf3 {[%clk 0:02:58.4]} 3... dxe4 {[%clk
0:02:55.6]} 4. Nxe4 {[%clk 0:02:59.3]} 4... Nf6 {[%clk 0:02:56.2]} 5. Qe2 {[%clk
0:02:58.9]} 5... Bf5 {[%clk 0:02:52.2]} 6. Nxf6+ {[%clk 0:02:58.1]} 6... gxf6
{[%clk 0:02:53.1]} 7. d3 {[%clk 0:02:55.5]} 7... Nd7 {[%clk 0:02:48.2]} 8. g3
{[%clk 0:02:55.5]} 8... e6 {[%clk 0:02:43]} 9. Bg2 {[%clk 0:02:55.4]} 9... Bg6
{[%clk 0:02:33.5]} 10. O-O {[%clk 0:02:55]} 10... Bd6 {[%clk 0:02:32.5]} 11. d4
{[%clk 0:02:54.7]} 11... Qc7 {[%clk 0:01:55.3]} 12. c4 {[%clk 0:02:54.1]} 12...
O-O {[%clk 0:01:45.4]} 13. Bh6 {[%clk 0:02:44.4]} 13... Rfe8 {[%clk 0:01:45]}
14. Rad1 {[%clk 0:02:44.5]} 14... c5 {[%clk 0:01:38.7]} 15. Rfe1 {[%clk
0:02:38.8]} 15... Rad8 {[%clk 0:01:33.6]} 16. d5 {[%clk 0:02:34.9]} 16... Bf8
{[%clk 0:01:21.3]} 17. Be3 {[%clk 0:02:22.2]} 17... exd5 {[%clk 0:01:01.8]} 18.
Rxd5 {[%clk 0:02:22.7]} 18... Nb6 {[%clk 0:01:02.2]} 19. Rxd8 {[%clk 0:02:20.9]}
19... Rxd8 {[%clk 0:01:02.8]} 20. Nh4 {[%clk 0:02:17.7]} 20... Bd6 {[%clk
0:00:56.8]} 21. b3 {[%clk 0:02:14.1]} 21... Be5 {[%clk 0:00:56.2]} 22. Qf3
{[%clk 0:02:10.9]} 22... Bc3 {[%clk 0:00:21.8]} 23. Bf4 {[%clk 0:02:00.7]} 23...
Be5 {[%clk 0:00:18.8]} 24. Bxe5 {[%clk 0:02:00.1]} 24... fxe5 {[%clk 0:00:19.7]}
25. Qf6 {[%clk 0:01:30.5]} 25... Re8 {[%clk 0:00:12.4]} 26. Nf5 {[%clk
0:01:30.1]} 26... Bxf5 {[%clk 0:00:11.8]} 27. Qxf5 {[%clk 0:01:30.9]} 27... Re6
{[%clk 0:00:08.7]} 28. Be4 {[%clk 0:01:22.3]} 28... h6 {[%clk 0:00:09]} 29. Qh7+
{[%clk 0:01:17.2]} 29... Kf8 {[%clk 0:00:09.5]} 30. Rd1 {[%clk 0:01:11.6]} 30...
Ke7 {[%clk 0:00:03.9]} 31. a4 {[%clk 0:01:07.1]} 31... Rd6 {[%clk 0:00:02.6]}
32. Re1 {[%clk 0:01:03]} 32... Nd7 {[%clk 0:00:02.6]} 33. Bd5 {[%clk 0:01:02]}
33... Rf6 {[%clk 0:00:01.2]} 34. Qe4 {[%clk 0:00:58.6]} 34... Nf8 {[%clk
0:00:02.1]} 35. Bxb7 {[%clk 0:00:57.5]} 35... Ne6 {[%clk 0:00:01.1]} 36. Bd5
{[%clk 0:00:52.5]} 1-0

[Event "*** SCC Grand Prix: Titled Tuesday Blitz"]
[Site "Chess.com"]
[Date "2020.10.06"]
[Round "5"]
[White "Ladislav1969"]
[Black "ehrenfeld"]
[Result "0-1"]
[WhiteElo "2369"]
[BlackElo "2515"]
[TimeControl "180+1"]
[EndTime "10:56:29 PDT"]
[Termination "ehrenfeld won on time"]

1. e4 {[%clk 0:03:00.9]} 1... e5 {[%clk 0:02:59.1]} 2. Bc4 {[%clk 0:03:00.1]}
2... Nf6 {[%clk 0:02:57.2]} 3. d3 {[%clk 0:03:01]} 3... Nc6 {[%clk 0:02:56.8]}
4. Nc3 {[%clk 0:03:00.2]} 4... Na5 {[%clk 0:02:55.1]} 5. Nge2 {[%clk 0:02:58.7]}
5... Be7 {[%clk 0:02:52.5]} 6. Ng3 {[%clk 0:02:55.1]} 6... d6 {[%clk 0:02:47.9]}
7. O-O {[%clk 0:02:49.2]} 7... c6 {[%clk 0:02:40.8]} 8. Re1 {[%clk 0:02:39.2]}
8... h5 {[%clk 0:02:34.5]} 9. Bg5 {[%clk 0:02:27.6]} 9... h4 {[%clk 0:02:32.5]}
10. Nf5 {[%clk 0:02:27.5]} 10... Bxf5 {[%clk 0:02:31.5]} 11. exf5 {[%clk
0:02:27.1]} 11... h3 {[%clk 0:02:25.1]} 12. g4 {[%clk 0:02:05.3]} 12... Nd7
{[%clk 0:02:11.1]} 13. Bd2 {[%clk 0:01:44.9]} 13... d5 {[%clk 0:02:01.3]} 14.
Bb3 {[%clk 0:01:40.3]} 14... Nxb3 {[%clk 0:02:00.5]} 15. axb3 {[%clk 0:01:39.5]}
15... Kf8 {[%clk 0:01:53.2]} 16. Qf3 {[%clk 0:01:37.2]} 16... Bg5 {[%clk
0:01:51.9]} 17. Bxg5 {[%clk 0:00:47.3]} 17... Qxg5 {[%clk 0:01:50.9]} 18. Kh1
{[%clk 0:00:48.2]} 18... Nf6 {[%clk 0:01:41.5]} 19. Rg1 {[%clk 0:00:48.1]} 19...
Rh4 {[%clk 0:01:38.6]} 20. Rae1 {[%clk 0:00:40]} 20... Re8 {[%clk 0:01:37]} 21.
Rg3 {[%clk 0:00:30.5]} 21... Rxg4 {[%clk 0:01:26.7]} 22. Rxh3 {[%clk 0:00:28.8]}
22... Kg8 {[%clk 0:01:23.5]} 23. Rg3 {[%clk 0:00:24.3]} 23... Qh4 {[%clk
0:01:18]} 24. Reg1 {[%clk 0:00:20.4]} 24... Rxg3 {[%clk 0:01:17]} 25. Qxg3
{[%clk 0:00:15.5]} 25... Qh6 {[%clk 0:01:13.3]} 26. Ne2 {[%clk 0:00:11.6]} 26...
Kf8 {[%clk 0:01:07.8]} 27. f4 {[%clk 0:00:10.7]} 27... e4 {[%clk 0:01:06.3]} 28.
Nd4 {[%clk 0:00:09.9]} 28... Nh5 {[%clk 0:00:58.7]} 29. Qg5 {[%clk 0:00:08.5]}
29... Nxf4 {[%clk 0:00:55.7]} 30. Qxh6 {[%clk 0:00:06.9]} 30... gxh6 {[%clk
0:00:55.6]} 31. f6 {[%clk 0:00:06.6]} 31... exd3 {[%clk 0:00:53.4]} 32. Nf5
{[%clk 0:00:02.2]} 32... dxc2 {[%clk 0:00:43.9]} 33. Ne7 {[%clk 0:00:02.6]}
33... Ng6 {[%clk 0:00:38.8]} 0-1

[Event "*** SCC Grand Prix: Titled Tuesday Blitz"]
[Site "Chess.com"]
[Date "2020.10.06"]
[Round "5"]
[White "tk22h"]
[Black "As0nchess"]
[Result "0-1"]
[WhiteElo "2343"]
[BlackElo "2508"]
[TimeControl "180+1"]
[EndTime "10:56:30 PDT"]
[Termination "As0nchess won by resignation"]

1. c4 {[%clk 0:02:58.7]} 1... c5 {[%clk 0:02:59.7]} 2. Nf3 {[%clk 0:02:52.8]}
2... Nc6 {[%clk 0:02:59]} 3. Nc3 {[%clk 0:02:52.2]} 3... g6 {[%clk 0:02:58.9]}
4. e3 {[%clk 0:02:51.8]} 4... Nf6 {[%clk 0:02:59.1]} 5. d4 {[%clk 0:02:51.9]}
5... cxd4 {[%clk 0:03:00]} 6. exd4 {[%clk 0:02:51.7]} 6... d5 {[%clk 0:03:00.4]}
7. cxd5 {[%clk 0:02:51.8]} 7... Nxd5 {[%clk 0:03:01.3]} 8. Qb3 {[%clk
0:02:52.2]} 8... Nxc3 {[%clk 0:03:01.4]} 9. Bc4 {[%clk 0:02:51.6]} 9... e6
{[%clk 0:03:01.3]} 10. bxc3 {[%clk 0:02:51.4]} 10... Bg7 {[%clk 0:02:59.9]} 11.
Ba3 {[%clk 0:02:50.5]} 11... Na5 {[%clk 0:02:59.4]} 12. Bb5+ {[%clk 0:02:47.7]}
12... Bd7 {[%clk 0:02:59.6]} 13. Qa4 {[%clk 0:02:45.7]} 13... Nc6 {[%clk
0:02:58.8]} 14. O-O {[%clk 0:02:44.3]} 14... a6 {[%clk 0:02:58.5]} 15. Bxc6
{[%clk 0:02:43.8]} 15... Bxc6 {[%clk 0:02:59.4]} 16. Qd1 {[%clk 0:02:43.7]}
16... Qa5 {[%clk 0:02:49.5]} 17. Bb4 {[%clk 0:02:43.2]} 17... Qf5 {[%clk
0:02:48.9]} 18. Re1 {[%clk 0:02:39]} 18... Bxf3 {[%clk 0:02:47.6]} 19. Qxf3
{[%clk 0:02:38.5]} 19... Qxf3 {[%clk 0:02:47.2]} 20. gxf3 {[%clk 0:02:39.4]}
20... O-O-O {[%clk 0:02:45.1]} 21. a4 {[%clk 0:02:37.1]} 21... Rd5 {[%clk
0:02:35.6]} 22. Rab1 {[%clk 0:02:33.2]} 22... b6 {[%clk 0:02:24.5]} 23. a5
{[%clk 0:02:28.8]} 23... b5 {[%clk 0:02:22.1]} 24. Bc5 {[%clk 0:02:28.8]} 24...
Bf8 {[%clk 0:02:16.2]} 25. Bb6 {[%clk 0:02:14.6]} 25... Kd7 {[%clk 0:02:10.4]}
26. Rbc1 {[%clk 0:02:11.5]} 26... Bh6 {[%clk 0:02:09.6]} 27. Rc2 {[%clk
0:02:10.8]} 27... Rc8 {[%clk 0:02:09.9]} 28. Bc5 {[%clk 0:02:08.1]} 28... Rg5+
{[%clk 0:02:00.4]} 29. Kf1 {[%clk 0:02:07.5]} 29... Rh5 {[%clk 0:01:59.9]} 30.
Kg2 {[%clk 0:02:06.8]} 30... Bf4 {[%clk 0:01:59.5]} 31. h3 {[%clk 0:02:07]}
31... Rg5+ {[%clk 0:01:59.4]} 32. Kf1 {[%clk 0:02:07]} 32... Bd6 {[%clk
0:01:58]} 33. Bb6 {[%clk 0:01:55.5]} 33... Rc4 {[%clk 0:01:56.7]} 34. Rec1
{[%clk 0:01:39.7]} 34... Bf4 {[%clk 0:01:53.7]} 35. Rd1 {[%clk 0:01:37.7]} 35...
b4 {[%clk 0:01:51.4]} 36. Rd3 {[%clk 0:01:36.8]} 36... Rb5 {[%clk 0:01:46.6]}
37. Bc5 {[%clk 0:01:32]} 37... b3 {[%clk 0:01:43.2]} 38. Rb2 {[%clk 0:01:31.9]}
38... Bc1 {[%clk 0:01:38.8]} 39. Rb1 {[%clk 0:01:32]} 39... b2 {[%clk
0:01:38.3]} 40. Bb4 {[%clk 0:01:28.4]} 40... Kc6 {[%clk 0:01:33.1]} 41. Ke2
{[%clk 0:01:28.5]} 41... Kd5 {[%clk 0:01:32.1]} 42. Kd1 {[%clk 0:01:28.4]} 42...
Rc7 {[%clk 0:01:22.4]} 43. Ba3 {[%clk 0:01:13.9]} 43... Rb3 {[%clk 0:01:15.1]}
44. Bb4 {[%clk 0:00:58.2]} 44... Rxb4 {[%clk 0:01:12.5]} 45. cxb4 {[%clk
0:00:56]} 45... Kc4 {[%clk 0:01:12.5]} 46. Ra3 {[%clk 0:00:45.6]} 46... Kxb4
{[%clk 0:01:11.4]} 47. Rd3 {[%clk 0:00:44.4]} 47... Rc3 {[%clk 0:01:04.8]} 48.
Ke2 {[%clk 0:00:39.1]} 48... Rxd3 {[%clk 0:01:03]} 49. Kxd3 {[%clk 0:00:38.9]}
49... Kb3 {[%clk 0:01:03.6]} 50. h4 {[%clk 0:00:33.4]} 50... h5 {[%clk
0:01:02.3]} 0-1

[Event "*** SCC Grand Prix: Titled Tuesday Blitz"]
[Site "Chess.com"]
[Date "2020.10.06"]
[Round "5"]
[White "kirillgenius"]
[Black "Revnov"]
[Result "0-1"]
[WhiteElo "2341"]
[BlackElo "2699"]
[TimeControl "180+1"]
[EndTime "10:56:31 PDT"]
[Termination "Revnov won on time"]

1. e4 {[%clk 0:03:00.9]} 1... c5 {[%clk 0:03:00.1]} 2. Nf3 {[%clk 0:03:00.4]}
2... d6 {[%clk 0:03:00.5]} 3. Nc3 {[%clk 0:03:00.6]} 3... Nf6 {[%clk 0:03:00.5]}
4. d4 {[%clk 0:03:00.9]} 4... cxd4 {[%clk 0:03:01.4]} 5. Nxd4 {[%clk 0:03:01.4]}
5... a6 {[%clk 0:03:00.8]} 6. Bc4 {[%clk 0:03:01.2]} 6... e6 {[%clk 0:02:59.4]}
7. Bb3 {[%clk 0:03:01]} 7... Nc6 {[%clk 0:02:59.3]} 8. Be3 {[%clk 0:02:59.8]}
8... Na5 {[%clk 0:02:58.2]} 9. Qe2 {[%clk 0:02:58.3]} 9... Be7 {[%clk
0:02:51.7]} 10. O-O-O {[%clk 0:02:56.2]} 10... Qc7 {[%clk 0:02:51.7]} 11. g4
{[%clk 0:02:50.2]} 11... O-O {[%clk 0:02:32.9]} 12. g5 {[%clk 0:02:49.6]} 12...
Nxb3+ {[%clk 0:02:33.1]} 13. axb3 {[%clk 0:02:48.8]} 13... Nd7 {[%clk
0:02:32.8]} 14. Rhg1 {[%clk 0:02:47.2]} 14... b5 {[%clk 0:02:25]} 15. Qh5 {[%clk
0:02:44.8]} 15... g6 {[%clk 0:02:13.7]} 16. Qh6 {[%clk 0:02:44.5]} 16... b4
{[%clk 0:02:08.4]} 17. Rg3 {[%clk 0:02:21.7]} 17... Re8 {[%clk 0:02:02.4]} 18.
Rh3 {[%clk 0:01:57.6]} 18... Nf8 {[%clk 0:01:59.3]} 19. Na4 {[%clk 0:01:27.4]}
19... e5 {[%clk 0:01:44.9]} 20. Ne2 {[%clk 0:01:03.2]} 20... Bxh3 {[%clk
0:01:42.5]} 21. Qxh3 {[%clk 0:01:04.1]} 21... Rab8 {[%clk 0:01:27.9]} 22. Kb1
{[%clk 0:00:59.9]} 22... Rec8 {[%clk 0:01:22.6]} 23. Rd2 {[%clk 0:00:53.9]}
23... Ne6 {[%clk 0:01:20.5]} 24. Qg4 {[%clk 0:00:39.7]} 24... Bf8 {[%clk
0:00:40.6]} 25. h4 {[%clk 0:00:38.4]} 25... Rd8 {[%clk 0:00:40.6]} 26. h5 {[%clk
0:00:30.8]} 26... Nc5 {[%clk 0:00:40.6]} 27. Nxc5 {[%clk 0:00:14.8]} 27... dxc5
{[%clk 0:00:40.6]} 28. Nc1 {[%clk 0:00:09.7]} 28... c4 {[%clk 0:00:35.4]} 29.
bxc4 {[%clk 0:00:07]} 29... Qxc4 {[%clk 0:00:32.9]} 30. b3 {[%clk 0:00:06.1]}
30... Qf1 {[%clk 0:00:30.4]} 0-1

[Event "*** SCC Grand Prix: Titled Tuesday Blitz"]
[Site "Chess.com"]
[Date "2020.10.06"]
[Round "5"]
[White "Loy_Konstantin"]
[Black "narutosmith"]
[Result "0-1"]
[WhiteElo "2346"]
[BlackElo "2226"]
[TimeControl "180+1"]
[EndTime "10:56:31 PDT"]
[Termination "narutosmith won on time"]

1. e4 {[%clk 0:03:00.9]} 1... c5 {[%clk 0:02:59.4]} 2. Nf3 {[%clk 0:03:00.6]}
2... e6 {[%clk 0:02:59.9]} 3. d3 {[%clk 0:03:00.4]} 3... Nc6 {[%clk 0:02:58.5]}
4. g3 {[%clk 0:03:00.7]} 4... g6 {[%clk 0:02:59.1]} 5. Bg2 {[%clk 0:03:00.9]}
5... Bg7 {[%clk 0:02:59.9]} 6. O-O {[%clk 0:03:01.4]} 6... Nge7 {[%clk
0:02:57.3]} 7. Re1 {[%clk 0:03:01.5]} 7... e5 {[%clk 0:02:57]} 8. Be3 {[%clk
0:02:56.9]} 8... d6 {[%clk 0:02:56.4]} 9. c3 {[%clk 0:02:57.2]} 9... O-O {[%clk
0:02:54.7]} 10. h3 {[%clk 0:02:57.2]} 10... Rb8 {[%clk 0:02:28.8]} 11. d4 {[%clk
0:02:56]} 11... exd4 {[%clk 0:02:27.5]} 12. cxd4 {[%clk 0:02:55.9]} 12... Qb6
{[%clk 0:02:28.1]} 13. d5 {[%clk 0:02:18.8]} 13... Ne5 {[%clk 0:01:49.2]} 14.
Na3 {[%clk 0:00:48.4]} 14... Nxf3+ {[%clk 0:01:39]} 15. Bxf3 {[%clk 0:00:46.9]}
15... Qxb2 {[%clk 0:01:36.5]} 16. Nc2 {[%clk 0:00:46.9]} 16... Bxh3 {[%clk
0:01:29.1]} 17. Bg2 {[%clk 0:00:42.3]} 17... Bxg2 {[%clk 0:01:26.7]} 18. Kxg2
{[%clk 0:00:43.2]} 18... f5 {[%clk 0:01:26]} 19. Bg5 {[%clk 0:00:35.8]} 19...
Rf7 {[%clk 0:01:20.8]} 20. Rb1 {[%clk 0:00:27.8]} 20... Qxa2 {[%clk 0:01:18.4]}
21. Qd3 {[%clk 0:00:16.9]} 21... fxe4 {[%clk 0:01:15]} 22. Qxe4 {[%clk
0:00:16.8]} 22... Nxd5 {[%clk 0:01:03.6]} 23. Ne3 {[%clk 0:00:11.5]} 23... Nc3
{[%clk 0:00:59.7]} 24. Qc2 {[%clk 0:00:06.7]} 24... Qxc2 {[%clk 0:00:53]} 25.
Nxc2 {[%clk 0:00:07.6]} 25... Nxb1 {[%clk 0:00:53.2]} 26. Rxb1 {[%clk
0:00:08.5]} 26... b5 {[%clk 0:00:53.4]} 27. Bf4 {[%clk 0:00:08.6]} 27... Be5
{[%clk 0:00:51.8]} 28. Bxe5 {[%clk 0:00:08.6]} 28... dxe5 {[%clk 0:00:52.7]} 29.
Ne3 {[%clk 0:00:09.4]} 29... a6 {[%clk 0:00:48.4]} 30. Ng4 {[%clk 0:00:09.4]}
30... Re7 {[%clk 0:00:43.1]} 31. Kf3 {[%clk 0:00:08.9]} 31... Kg7 {[%clk
0:00:41.6]} 32. Ke4 {[%clk 0:00:09.2]} 32... Rd8 {[%clk 0:00:40.9]} 33. Ra1
{[%clk 0:00:07.8]} 33... Rd4+ {[%clk 0:00:40.1]} 34. Kf3 {[%clk 0:00:08.2]}
34... Rf7+ {[%clk 0:00:40]} 0-1

[Event "*** SCC Grand Prix: Titled Tuesday Blitz"]
[Site "Chess.com"]
[Date "2020.10.06"]
[Round "5"]
[White "Ze-Pequeno"]
[Black "Oligan22"]
[Result "0-1"]
[WhiteElo "2254"]
[BlackElo "2418"]
[TimeControl "180+1"]
[EndTime "10:56:33 PDT"]
[Termination "Oligan22 won by resignation"]

1. e4 {[%clk 0:03:00.9]} 1... c5 {[%clk 0:02:59.3]} 2. Nf3 {[%clk 0:03:00.5]}
2... e6 {[%clk 0:02:59.2]} 3. d4 {[%clk 0:03:00.8]} 3... cxd4 {[%clk 0:03:00.1]}
4. Nxd4 {[%clk 0:03:01.4]} 4... Nc6 {[%clk 0:03:00.1]} 5. Nc3 {[%clk 0:03:01.1]}
5... Qc7 {[%clk 0:02:59.8]} 6. Be3 {[%clk 0:03:01.1]} 6... a6 {[%clk 0:02:59.4]}
7. Bd3 {[%clk 0:03:01.1]} 7... Nf6 {[%clk 0:02:57.1]} 8. O-O {[%clk 0:03:00.7]}
8... b5 {[%clk 0:02:50.6]} 9. Nxc6 {[%clk 0:02:59]} 9... dxc6 {[%clk 0:02:49.3]}
10. a4 {[%clk 0:02:41.3]} 10... b4 {[%clk 0:02:46.6]} 11. Ne2 {[%clk 0:02:32.2]}
11... c5 {[%clk 0:02:44.6]} 12. c3 {[%clk 0:02:30]} 12... c4 {[%clk 0:02:36.5]}
13. Bb1 {[%clk 0:02:27.2]} 13... a5 {[%clk 0:02:04.7]} 14. f4 {[%clk 0:02:10.3]}
14... Bb7 {[%clk 0:02:04.1]} 15. Ng3 {[%clk 0:02:08.5]} 15... Bc5 {[%clk
0:02:00.5]} 16. Qe2 {[%clk 0:02:04.3]} 16... O-O {[%clk 0:01:52.1]} 17. Kh1
{[%clk 0:02:01.4]} 17... Bxe3 {[%clk 0:01:41.3]} 18. Qxe3 {[%clk 0:02:00]} 18...
Rfd8 {[%clk 0:01:40.3]} 19. e5 {[%clk 0:01:41.3]} 19... Nd5 {[%clk 0:01:10.7]}
20. Qe4 {[%clk 0:01:37.7]} 20... g6 {[%clk 0:01:10.6]} 21. Qe1 {[%clk
0:01:35.3]} 21... Qb6 {[%clk 0:01:02.5]} 22. Be4 {[%clk 0:01:27.4]} 22... Rd7
{[%clk 0:00:56.4]} 23. Bxd5 {[%clk 0:01:10]} 23... Bxd5 {[%clk 0:00:57.3]} 24.
Ne4 {[%clk 0:01:10]} 24... Bxe4 {[%clk 0:00:56.8]} 25. Qxe4 {[%clk 0:01:10.9]}
25... Rc8 {[%clk 0:00:54.2]} 26. Rad1 {[%clk 0:01:08.6]} 26... Qc7 {[%clk
0:00:51]} 27. h3 {[%clk 0:00:43.5]} 27... Rcd8 {[%clk 0:00:50.8]} 28. Rxd7
{[%clk 0:00:38.8]} 28... Rxd7 {[%clk 0:00:51.7]} 29. cxb4 {[%clk 0:00:32.3]}
29... axb4 {[%clk 0:00:52.6]} 30. Rc1 {[%clk 0:00:32.4]} 30... c3 {[%clk
0:00:37.3]} 31. Qxb4 {[%clk 0:00:29]} 31... c2 {[%clk 0:00:37.6]} 32. Kh2 {[%clk
0:00:19.4]} 32... Rd1 {[%clk 0:00:37.1]} 0-1

[Event "*** SCC Grand Prix: Titled Tuesday Blitz"]
[Site "Chess.com"]
[Date "2020.10.06"]
[Round "5"]
[White "vladislavkovalev"]
[Black "731291"]
[Result "1-0"]
[WhiteElo "2868"]
[BlackElo "2651"]
[TimeControl "180+1"]
[EndTime "10:56:34 PDT"]
[Termination "vladislavkovalev won by resignation"]

1. e4 {[%clk 0:03:00.9]} 1... c5 {[%clk 0:02:52.5]} 2. Nf3 {[%clk 0:03:00.7]}
2... e6 {[%clk 0:02:52.2]} 3. Nc3 {[%clk 0:03:00.8]} 3... a6 {[%clk 0:02:51.2]}
4. d4 {[%clk 0:03:01.5]} 4... cxd4 {[%clk 0:02:52.1]} 5. Nxd4 {[%clk 0:03:02.4]}
5... Nc6 {[%clk 0:02:52.7]} 6. g3 {[%clk 0:02:59.6]} 6... Qc7 {[%clk 0:02:51.5]}
7. Bg2 {[%clk 0:03:00]} 7... d6 {[%clk 0:02:51.3]} 8. O-O {[%clk 0:03:00.3]}
8... Bd7 {[%clk 0:02:51.5]} 9. Re1 {[%clk 0:02:58.6]} 9... Be7 {[%clk
0:02:51.2]} 10. h3 {[%clk 0:02:49.1]} 10... Nf6 {[%clk 0:02:51.1]} 11. a4 {[%clk
0:02:47.2]} 11... O-O {[%clk 0:02:50.1]} 12. Nde2 {[%clk 0:02:45.8]} 12... Rab8
{[%clk 0:02:42.2]} 13. g4 {[%clk 0:02:42]} 13... Rfd8 {[%clk 0:02:21.2]} 14. g5
{[%clk 0:02:36.1]} 14... Ne8 {[%clk 0:02:21.6]} 15. Ng3 {[%clk 0:02:34.2]} 15...
b5 {[%clk 0:02:20.5]} 16. axb5 {[%clk 0:02:35.1]} 16... axb5 {[%clk 0:02:21.4]}
17. h4 {[%clk 0:02:21.3]} 17... b4 {[%clk 0:02:21.1]} 18. Nce2 {[%clk 0:02:22]}
18... Rdc8 {[%clk 0:01:57.8]} 19. h5 {[%clk 0:02:12.5]} 19... Ne5 {[%clk
0:01:56]} 20. Nd4 {[%clk 0:02:11.7]} 20... Nc6 {[%clk 0:01:47.2]} 21. Be3 {[%clk
0:02:03.9]} 21... Nxd4 {[%clk 0:01:46.7]} 22. Qxd4 {[%clk 0:02:02.8]} 22... e5
{[%clk 0:01:39.6]} 23. Qd1 {[%clk 0:01:47.4]} 23... Qxc2 {[%clk 0:01:37.9]} 24.
Ra7 {[%clk 0:01:47.4]} 24... Qxd1 {[%clk 0:01:36.7]} 25. Rxd1 {[%clk 0:01:48.3]}
25... Rc7 {[%clk 0:01:36.5]} 26. Rda1 {[%clk 0:01:43]} 26... g6 {[%clk
0:01:22.4]} 27. Rxc7 {[%clk 0:01:34.4]} 27... Nxc7 {[%clk 0:01:23.3]} 28. Ra7
{[%clk 0:01:34.9]} 28... Bd8 {[%clk 0:01:23.1]} 29. Bf1 {[%clk 0:01:30]} 29...
Be6 {[%clk 0:01:17.7]} 30. f4 {[%clk 0:01:22.8]} 30... exf4 {[%clk 0:01:10.4]}
31. Bxf4 {[%clk 0:01:23.7]} 31... Ne8 {[%clk 0:01:03.6]} 32. Be3 {[%clk
0:01:19.7]} 32... Bb6 {[%clk 0:00:54.4]} 33. Bxb6 {[%clk 0:01:19.5]} 33... Rxb6
{[%clk 0:00:55.3]} 34. h6 {[%clk 0:01:14.3]} 34... Kf8 {[%clk 0:00:44.3]} 35.
Kf2 {[%clk 0:01:14.1]} 35... Rc6 {[%clk 0:00:35.8]} 36. Bb5 {[%clk 0:01:13.9]}
36... Rc8 {[%clk 0:00:31.8]} 37. Ne2 {[%clk 0:01:09.1]} 37... Nc7 {[%clk
0:00:29.1]} 38. Bc6 {[%clk 0:01:09.2]} 38... Ne8 {[%clk 0:00:26.5]} 39. Nd4
{[%clk 0:01:08.8]} 39... Bc4 {[%clk 0:00:21.4]} 40. Ke3 {[%clk 0:01:04.2]} 40...
b3 {[%clk 0:00:16.8]} 41. Rb7 {[%clk 0:00:59.3]} 41... Nc7 {[%clk 0:00:16.3]}
42. Bd7 {[%clk 0:00:57.9]} 1-0